Cogmind - Beta 13 @@@ ROGUE MODE // 2024.07.22 @ 02:05:28 Player: Beef Result: Destroyed by Y-64 Sentinel with KE Penetrator Performance ------------- Evolutions (6) 3000 Regions Visited (11) 2200 Robots Destroyed (100) 500 Value Destroyed (3919) 3919 Prototype IDs (10) 200 Alien Tech Used (0) 0 Bonus (430) 430 TOTAL SCORE: 10249 Bonus ------- High Alert Combat Kills 33 Follower Combat Kills 837 Friendly Fire -440 Cogmind --------- Core Integrity 0/1150 Matter 595/600 Energy 215/315 System Corruption 24% Temperature Cool (39) Movement Treading (160) Location -4/Extension Parts ------- > --- POWER (1) -------- Neutrino Core > --- PROPULSION (4) --- Improved Treads Improved Treads Wheel > --- UTILITY (11) ----- Advanced Heat Sink Improved Matter Compressor Structural Scanner Terrain Scanner Advanced Terrain Scanner Improved Targeting Computer Advanced Target Analyzer Improved Medium Armor Plating > --- WEAPON (3) ------- Tesla Rifle Wave Gun Plasma Sword > --- INVENTORY (5) ---- Neutrino Core Light Antimatter Reactor Peak State ------------ > --- POWER ------------ Antimatter Reactor > --- PROPULSION ------- Flexi-carbon Leg Myomer Leg Myomer Leg Myomer Leg > --- UTILITY ---------- Advanced Heat Sink Advanced Heat Sink Medium Storage Unit Enhanced Optical Array Advanced Signal Interpreter Advanced Terrain Scanner Makeshift Terrain Scan Processor Advanced Target Analyzer Core Analyzer Improved Phase Shifter Backup Plating VII > --- WEAPON ----------- Dispersion Rifle Railgun Antimatter Cannon > --- INVENTORY -------- Light Antimatter Reactor Myomer Leg Myomer Leg Improved Matter Compressor Advanced Terrain Scanner Tesla Rifle Plasma Rifle Backup Laser VII Backup Laser VII Plasma Sword [Rating: 114] Favorites ----------- Power Ion Engine Engine Ion Engine Power Core Nuclear Core Reactor Antimatter Reactor Propulsion Advanced Treads Treads Advanced Treads Leg Flexi-carbon Leg Wheel Wheel Hover Unit Antigrav System Utility Medium Storage Unit Device Power Amplifier Storage Medium Storage Unit Processor Visual Processing Unit Hackware Hacking Suite Protection Layered Light Armor Plating Weapon Heavy EM Shotgun Energy Gun Heavy EM Shotgun Energy Cannon Heavy Plasma Cannon Ballistic Gun KE Penetrator Ballistic Cannon Antimatter Cannon Launcher Improved Grenade Launcher Slashing Weapon Plasma Sword Build | -11 -10 -9 -8 -8 -8 -6 -6 -6 -5 -4 -4 ------- Run | Yrd Mat Mat Mat Sto Rec Fac Low Low Fac Fac Ext Slots Evolved 12 | . . 2 2 . . 4 . . 2 2 . Power . | . . . . . . . . . . . . Propulsion 2 | . . . . . . 2 . . . . . Utility 9 | . . 2 2 . . 1 . . 2 2 . Weapon 1 | . . . . . . 1 . . . . . Parts Attached 190 | 7 5 11 3 5 3 20 3 3 48 47 35 Power 19 | 2 . . 1 . . 1 . . 7 5 3 Engine 5 | 2 . . . . . 1 . . 1 . 1 Core 9 | . . . 1 . . . . . 6 1 1 Reactor 5 | . . . . . . . . . . 4 1 Propulsion 52 | 2 . 4 . . 2 7 1 . 12 12 12 Treads 26 | 2 . 4 . . 2 7 1 . 5 2 3 Leg 19 | . . . . . . . . . 2 9 8 Wheel 3 | . . . . . . . . . 1 1 1 Hover 4 | . . . . . . . . . 4 . . Flight . | . . . . . . . . . . . . Utility 70 | 1 3 3 2 1 1 7 1 2 16 20 13 Device 36 | . . 2 1 1 1 4 . 1 7 12 7 Storage 5 | 1 1 . . . . . . . . 2 1 Processor 12 | . 2 1 . . . . . 1 3 3 2 Hackware 4 | . . . 1 . . . . . 3 . . Protection 13 | . . . . . . 3 1 . 3 3 3 Artifact . | . . . . . . . . . . . . Weapon 49 | 2 2 4 . 4 . 5 1 1 13 10 7 Energy Gun 23 | 1 1 2 . 3 . 2 . . 5 4 5 Energy Cannon 4 | . . . . 1 . . . . 3 . . Ballistic Gun 14 | 1 1 2 . . . 2 . . 3 5 . Ballistic Cannon 2 | . . . . . . 1 . . . 1 . Launcher 3 | . . . . . . . 1 1 1 . . Special Weapon . | . . . . . . . . . . . . Impact Weapon . | . . . . . . . . . . . . Slashing Weapon 3 | . . . . . . . . . 1 . 2 Piercing Weapon . | . . . . . . . . . . . . Special Melee Weapon . | . . . . . . . . . . . . Unidentified Prototypes 6 | . . . . 2 . . . . 2 2 . Corrupted Parts 1 | . . . . . . . . . . . 1 System Corruption 8 | . . . . . . . . . . . 8 Parts Lost 72 | . . . . . 1 5 3 . 18 20 25 Power 6 | . . . . . . 1 . . . 2 3 Propulsion 21 | . . . . . . . 1 . 8 6 6 Utility 27 | . . . . . 1 1 2 . 4 7 12 Weapon 18 | . . . . . . 3 . . 6 5 4 Highest Loss Streak 22 | . . . . . 1 5 3 . 6 8 22 To Critical Strikes . | . . . . . . . . . . . . Average Slot Usage (%) 93 | . 93 98 91 100 99 88 98 98 93 97 78 Engine 3 | . 14 11 8 . . . 6 6 2 . . Core 2 | . . . . 9 9 5 . . 2 . . Reactor 1 | . . . . . . . . . . 4 2 Treads 15 | . 28 22 18 18 18 25 25 26 15 2 2 Leg 4 | . . . . . . . . . 1 13 13 Device 14 | . . 14 11 18 17 10 12 11 17 16 15 Storage 6 | . 14 11 9 9 9 6 6 6 5 5 3 Processor 16 | . 8 18 18 18 18 13 13 13 12 22 18 Hackware 5 | . . . 8 9 9 6 5 . 7 8 . Protection 3 | . . . . . . 1 6 13 5 2 4 Energy Gun 8 | . 13 8 . 14 18 10 13 13 6 5 5 Ballistic Gun 4 | . 13 13 18 3 . 3 . . . 6 2 Naked Turns . | . . . . . . . . . . . . Heaviest Build 67 | 12 17 24 25 27 27 39 38 43 67 54 54 Greatest Support 108 | 40 40 44 44 44 44 108 108 100 100 85 95 Greatest Overweight (x) 2 | 2 . . . . . . . . 2 2 1 Average Overweight (x) . | . . . . . . . . . . . . Largest Inventory Capacity 10 | 8 10 10 10 10 10 10 10 10 10 10 10 Average Capacity 9 | 6 9 10 10 10 10 10 10 10 10 10 7 Most Carried 10 | 2 4 10 10 10 10 10 7 9 10 10 10 Average Carried 8 | 1 2 7 9 8 9 9 6 8 9 9 6 Final Capacity 10 | 8 10 10 10 10 10 10 10 10 10 10 5 Final Carried 10 | 2 4 10 10 9 10 7 5 9 10 10 2 Class Distribution -------------------- 26% | Scavenger-Skirmisher 14% | Skirmisher 12% | Tank 10% | Scavenger-Assassin 10% | Scavenger-Gunner 8% | Mutant 5% | Scavenger-Mutant 3% | Hacker-Gunner Dominant Class ---------------- Mutant | -10/Materials Skirmisher | -9/Materials Skirmisher | -8/Materials Scavenger-Skirmisher | -8/Storage Scavenger-Skirmisher | -8/Recycling Skirmisher | -6/Factory Scavenger-Skirmisher | -6/Lower Caves Tank | -6/Lower Caves Tank | -5/Factory Scavenger-Gunner | -4/Factory Scavenger-Skirmisher | -4/Extension Resources | -11 -10 -9 -8 -8 -8 -6 -6 -6 -5 -4 -4 ----------- Run | Yrd Mat Mat Mat Sto Rec Fac Low Low Fac Fac Ext Matter Collected 3683 | 137 219 246 26 76 38 153 150 117 630 973 918 Remotely . | . . . . . . . . . . . . Salvage Created 4971 | . 385 372 44 289 309 236 76 99 782 1626 753 Parts 247 | . 23 17 3 13 9 12 5 . 45 89 31 Haulers Intercepted 3 | . 1 . . . . 1 . . . 1 . Recyclers Shooed 5 | . 1 . . . . . . . . 1 3 Parts Field Recycled . | . . . . . . . . . . . . Retrieved Matter . | . . . . . . . . . . . . Parts Self-Destructed 5 | . . . . . . . 5 . . . . Prevented . | . . . . . . . . . . . . Kills | -11 -10 -9 -8 -8 -8 -6 -6 -6 -5 -4 -4 ------- Run | Yrd Mat Mat Mat Sto Rec Fac Low Low Fac Fac Ext Combat Hostiles Destroyed 70 | . 2 4 1 4 2 3 3 . 18 24 9 Melee 7 | . . . . . . . . . 5 1 1 Guns 43 | . 2 4 1 2 1 1 . . 5 22 5 Cannons 10 | . . . . . . 2 . . 5 1 2 AOE 8 | . . . . 2 . . 3 . 3 . . Classes Destroyed 17 | . 6 2 . . . 2 . 1 4 1 1 Worker 5 | . . . . . . 1 . . 2 2 . Builder 5 | . 2 . . . . 1 . . . 1 1 Tunneler 1 | . . . . . . . . . 1 . . Hauler 3 | . 1 . . . . 1 . . . 1 . Recycler 11 | . 2 3 . 1 2 . . . . 2 1 Mechanic 1 | . 1 . . . . . . . . . . Operator 1 | . . 1 . . . . . . . . . Watcher 3 | . 1 . . . . . . . 1 1 . Swarmer 20 | . . . . . . 3 . . 8 9 . Grunt 30 | . 2 2 . 4 . . 3 . 4 9 6 Brawler 2 | . . . . . . . . . . . 2 Duelist 1 | . . . . . . . . . 1 . . Sentry 5 | . . 2 1 . 2 . . . . . . Hunter 2 | . . . . . . . . . . 2 . Programmer 8 | . . . . . . . . . 4 4 . Heavy 1 | . . . . . . . . . 1 . . Samaritan 1 | . . . . . . . . 1 . . . Thug 1 | . . . . . . . . . . . 1 Best Kill Streak 7 | . 4 2 1 3 2 3 2 . 4 7 2 Combat Bots Only 7 | . 2 2 1 3 1 3 2 . 4 7 2 Max Kills in Single Turn 3 | . 1 1 1 2 1 1 2 1 3 1 1 Gunslinging 1 | . . . . 1 . . . . . . . Exploded 2 | . . . . 1 . . 2 . 2 . . Melee 1 | . . . . . . . . . 1 1 1 Uniques/NPCs Destroyed . | . . . . . . . . . . . . Combat | -11 -10 -9 -8 -8 -8 -6 -6 -6 -5 -4 -4 -------- Run | Yrd Mat Mat Mat Sto Rec Fac Low Low Fac Fac Ext Hostile Shots Fired 836 | . 7 36 6 15 12 70 41 . 152 251 246 Missed 213 | . 1 11 2 7 2 8 7 . 40 72 63 Damage Taken 12284 | . 135 350 57 190 187 1212 750 . 2636 3465 3302 Core 1834 | . 47 92 . 24 18 167 52 . 265 502 667 Absorbed by Shields 43 | . . . . . . . . . . 43 . Core Remaining (%) 82 | 100 81 77 . . 92 . . 74 73 . . Volleys Fired 258 | . 36 18 2 6 9 17 8 5 40 79 38 Largest 3 | . 2 2 2 2 2 3 3 2 3 3 3 Hottest 251 | . 60 90 50 100 100 160 171 135 245 251 163 Shots Fired 620 | . 71 36 4 12 18 49 24 10 91 211 94 Gun 501 | . 71 36 4 12 18 37 16 10 34 195 68 Cannon 105 | . . . . . . 12 . . 51 16 26 Launcher 14 | . . . . . . . 8 . 6 . . Special . | . . . . . . . . . . . . Kinetic 299 | . 36 34 4 . . 27 . . 6 138 54 Thermal 209 | . 35 . . . . 3 8 5 55 73 30 Explosive 14 | . . . . . . . 8 . 6 . . Electromagnetic 98 | . . 2 . 12 18 19 8 5 24 . 10 Robot Hit Streak 18 | . 6 12 3 6 9 12 4 13 9 7 18 Robot Miss Streak 6 | . 3 5 2 2 2 4 5 1 4 4 6 Penetration Max 1 | . . . . . . 1 . . . 1 1 Secondary Targets 9 | . . 1 . 1 . . . . 2 5 . Max Gunslinging Chain 1 | . . 1 . 1 . . . . 1 1 . Shots Hit Robots 429 | . 46 26 3 11 16 37 7 10 70 136 67 Core Hits 215 | . 21 11 2 9 5 15 15 6 47 53 31 Critical Kills 15 | . . . . . . 1 . . . 12 2 Critical Parts Destroyed 17 | . . . . . . 1 . . . 14 2 Critical Strikes 44 | . . 1 . . . 2 . . 3 31 7 Burn 3 | . . . . . . . . . . 3 . Destroy 32 | . . . . . . 2 . . . 26 4 Blast 4 | . . . . . . . . . . 1 3 Corrupt 1 | . . 1 . . . . . . . . . Sever 4 | . . . . . . . . . 3 1 . Melee Attacks 39 | . . . . . . . . . 17 10 12 Impact . | . . . . . . . . . . . . Slashing 39 | . . . . . . . . . 17 10 12 Piercing . | . . . . . . . . . . . . Sneak Attacks 4 | . . . . . . . . . 1 1 2 Combat Hostiles . | . . . . . . . . . . . . Follow-up Attacks . | . . . . . . . . . . . . Damage Inflicted 12117 | . 440 485 63 319 394 670 491 181 2743 4066 2265 Guns 7379 | . 440 485 63 189 316 431 146 181 339 3607 1182 Cannons 2097 | . . . . . . 239 . . 1073 195 590 Explosions 1491 | . . . . 128 78 . 345 . 813 . 127 Melee 1109 | . . . . . . . . . 481 264 364 Ramming 41 | . . . . 2 . . . . 37 . 2 Kinetic 4657 | . 179 470 63 . . 366 . . 108 2422 1049 Thermal 3951 | . 261 . . 128 78 94 126 125 1130 1380 629 Explosive 914 | . . . . . . . 345 . 569 . . Electromagnetic 1445 | . . 15 . 189 316 210 20 56 418 . 221 Impact . | . . . . . . . . . . . . Slashing 1109 | . . . . . . . . . 481 264 364 Piercing . | . . . . . . . . . . . . Highest Corruption 24 | . . . . 1 1 . . . 10 5 24 Average Corruption 6 | . . . . 1 1 . . . 7 4 11 Corruption Purged . | . . . . . . . . . . . . Corruption Blocked . | . . . . . . . . . . . . Effects 59 | . . . . 1 5 . . . 11 11 31 Message Errors 14 | . . . . . 2 . . . 5 3 4 Matter Fused 12 | . . . . 1 1 . . . 1 2 7 Heat Flow Errors 5 | . . . . . . . . . 1 2 2 Energy Discharges 2 | . . . . . . . . . . 1 1 Parts Rejected 3 | . . . . . . . . . 1 . 2 Data Loss (minor) 10 | . . . . . 1 . . . 2 . 7 Data Loss (major) 2 | . . . . . 1 . . . . 1 . Misfires 2 | . . . . . . . . . . . 2 Alerts 3 | . . . . . . . . . 1 1 1 Misdirections 1 | . . . . . . . . . . . 1 Weapon Failures 5 | . . . . . . . . . . 1 4 Overload Shots . | . . . . . . . . . . . . Overflow Damage 234 | . . . . . 37 . . . 25 74 98 Projectiles 39 | . . . . . . . . . 20 5 14 Explosions 50 | . . . . . 37 . . . 5 . 8 Melee 145 | . . . . . . . . . . 69 76 Knockbacks 8 | . . . . . . . . . . 1 7 Impact . | . . . . . . . . . . . . Kinetic 8 | . . . . . . . . . . 1 7 Secondary . | . . . . . . . . . . . . Self-Inflicted Damage 315 | . . . . 24 40 . 108 . 23 66 54 Shots 9 | . . . . 1 2 . 3 . 1 1 1 Rammed 6 | . . . . . . . . . 6 . . Targets Rammed 10 | . . . . 1 . . . . 7 . 2 Kicked 2 | . . . . . . . . . . . 2 Crushed 2 | . . . . 1 . . . . 1 . . Highest Temperature 484 | . 103 21 . 28 126 396 321 185 431 484 140 Average Temperature 90 | . 29 5 . 18 45 149 140 88 122 75 28 Received Heat Transfer 2011 | . 72 129 9 45 63 474 288 . 36 553 342 Effects 18 | . . . . . . 7 3 . 6 2 . Shutdowns 2 | . . . . . . 1 . . . 1 . Energy Bleed 1 | . . . . . . 1 . . . . . Interference 9 | . . . . . . 2 3 . 4 . . Matter Decay 3 | . . . . . . 2 . . . 1 . Short Circuit 1 | . . . . . . . . . 1 . . Damage (minor) 1 | . . . . . . 1 . . . . . Damage (major) 1 | . . . . . . . . . 1 . . Siege Activations . | . . . . . . . . . . . . Robots Corrupted 2 | . . . . . 1 . . . . . 1 Combat Hostiles 2 | . . . . . 1 . . . . . 1 Parts Fried 4 | . . . . . 2 . . . . . 2 Impact Corruptions . | . . . . . . . . . . . . Robots Melted . | . . . . . . . . . . . . Combat Hostiles . | . . . . . . . . . . . . Parts Melted 7 | . 1 . . . . . . . 2 4 . Heat Transferred 6730 | . 600 . . 200 100 200 275 275 1750 2545 785 Parts Sabotaged . | . . . . . . . . . . . . Parts Stolen . | . . . . . . . . . . . . Parts Stripped . | . . . . . . . . . . . . Power Chain Reactions 5 | . . . . 2 2 . . . . . 1 Alert | -11 -10 -9 -8 -8 -8 -6 -6 -6 -5 -4 -4 ------- Run | Yrd Mat Mat Mat Sto Rec Fac Low Low Fac Fac Ext Peak Influence 543 | . 134 167 65 401 272 272 . . 318 532 543 Initial 260 | . . 56 20 27 156 185 . . 19 155 260 Average 173 | . 68 69 38 165 191 156 . . 133 205 338 Maximum Alert Level 2 | . . . . 2 1 1 . . 1 2 2 Low Security (%) 63 | 100 100 100 100 56 25 83 . . 71 66 14 Level 1 30 | . . . . 28 74 16 . . 28 28 58 Level 2 5 | . . . . 15 . . . . . 5 26 Level 3 . | . . . . . . . . . . . . Level 4 . | . . . . . . . . . . . . Level 5 . | . . . . . . . . . . . . High Security . | . . . . . . . . . . . . Max Security . | . . . . . . . . . . . . Squads Dispatched 14 | . . 1 . 3 . . . . 3 2 5 Investigation 4 | . . . . 1 . . . . . . 3 Extermination 3 | . . . . . . . . . 2 1 . Reinforcement 5 | . . 1 . 1 . . . . 1 1 1 Assault 1 | . . . . . . . . . . . 1 Garrison 1 | . . . . 1 . . . . . . . Intercept . | . . . . . . . . . . . . Searches Triggered . | . . . . . . . . . . . . Construction Impeded 1 | . . . . . . . . . . . 1 Haulers Reinforced 1 | . . . . . . . . . . 1 . Active Scanning Responses . | . . . . . . . . . . . . Cargo Convoy Interrupts . | . . . . . . . . . . . . Stealth | -11 -10 -9 -8 -8 -8 -6 -6 -6 -5 -4 -4 --------- Run | Yrd Mat Mat Mat Sto Rec Fac Low Low Fac Fac Ext Distress Signals 3 | . . . . 1 . . . . . 1 1 Communications Jammed 1 | . . . . . . . . . 1 . . Distress Signals 1 | . . . . . . . . . 1 . . Times Spotted 129 | . 8 6 1 13 2 4 3 . 27 32 33 Peak Tracking Total 12 | . 2 2 1 8 1 3 3 . 4 8 12 Tactical Retreats 6 | . . . . 2 . . . . 2 . 2 Traps | -11 -10 -9 -8 -8 -8 -6 -6 -6 -5 -4 -4 ------- Run | Yrd Mat Mat Mat Sto Rec Fac Low Low Fac Fac Ext Traps Triggered 8 | . 2 . . 1 . . . . 2 3 . Indirectly . | . . . . . . . . . . . . Trap Hack Attempts . | . . . . . . . . . . . . Triggered . | . . . . . . . . . . . . Disarmed . | . . . . . . . . . . . . Reprogrammed . | . . . . . . . . . . . . Reused . | . . . . . . . . . . . . Traps Extracted . | . . . . . . . . . . . . Installed . | . . . . . . . . . . . . Triggered . | . . . . . . . . . . . . Machines | -11 -10 -9 -8 -8 -8 -6 -6 -6 -5 -4 -4 ---------- Run | Yrd Mat Mat Mat Sto Rec Fac Low Low Fac Fac Ext Machines Disabled 15 | . . . . . . . . . 5 7 3 Max in Single Turn 5 | . . . . . . . . . 4 5 1 Garrison Access 1 | . . . . . . . . . . 1 . Machines Repaired . | . . . . . . . . . . . . Machines Dismantled . | . . . . . . . . . . . . Machines Sabotaged . | . . . . . . . . . . . . Overloaded Fab Kills . | . . . . . . . . . . . . Hacking | -11 -10 -9 -8 -8 -8 -6 -6 -6 -5 -4 -4 --------- Run | Yrd Mat Mat Mat Sto Rec Fac Low Low Fac Fac Ext Machines Accessed 20 | . . . . 2 5 1 . 1 2 3 6 Terminals 16 | . . . . 2 4 1 . . 1 2 6 Fabricators 1 | . . . . . . . . . 1 . . Repair Stations . | . . . . . . . . . . . . Recycling Units 1 | . . . . . 1 . . . . . . Scanalyzers . | . . . . . . . . . . . . Garrison Access 1 | . . . . . . . . . . 1 . Total Hacks 53 | . . . . 6 17 2 . 1 10 5 12 Successful 27 | . . . . 5 8 1 . 1 6 2 4 Failed 26 | . . . . 1 9 1 . . 4 3 8 Catastrophic 6 | . . . . 1 . . . . 2 2 1 Database Lockouts . | . . . . . . . . . . . . Manual 12 | . . . . 1 6 . . . 3 2 . Terminals 46 | . . . . 6 16 2 . . 6 4 12 Fabricators 4 | . . . . . . . . . 4 . . Repair Stations . | . . . . . . . . . . . . Recycling Units 1 | . . . . . 1 . . . . . . Scanalyzers . | . . . . . . . . . . . . Garrison Access 1 | . . . . . . . . . . 1 . Terminal Hacks 22 | . . . . 5 7 1 . 1 4 . 4 Record 1 | . . . . . . . . 1 . . . Part Schematic 8 | . . . . 3 3 . . . 2 . . Prototype ID Bank 2 | . . . . 1 1 . . . . . . Open Door 3 | . . . . . . . . . . . 3 Branch Access Points 2 | . . . . . 1 . . . . . 1 Terminal Index 1 | . . . . . 1 . . . . . . Alert Level 2 | . . . . . . 1 . . 1 . . Locate Traps 1 | . . . . 1 . . . . . . . Registered Components 1 | . . . . . 1 . . . . . . Zone Layout 1 | . . . . . . . . . 1 . . Fabricator Hacks 1 | . . . . . . . . . 1 . . Network Status 1 | . . . . . . . . . 1 . . Repair Station Hacks . | . . . . . . . . . . . . Recycling Unit Hacks . | . . . . . . . . . . . . Scanalyzer . | . . . . . . . . . . . . Garrison Access Hacks 1 | . . . . . . . . . . 1 . Seal Access 1 | . . . . . . . . . . 1 . Unauthorized Hacks 3 | . . . . . 1 . . . 1 1 . Terminals 1 | . . . . . . . . . . 1 . Botnet 1 | . . . . . . . . . . 1 . Fabricators 1 | . . . . . . . . . 1 . . Fabnet 1 | . . . . . . . . . 1 . . Repair Stations . | . . . . . . . . . . . . Recycling Units 1 | . . . . . 1 . . . . . . Tunnel 1 | . . . . . 1 . . . . . . Scanalyzers . | . . . . . . . . . . . . Garrison Access . | . . . . . . . . . . . . Data Cores Recovered . | . . . . . . . . . . . . Used . | . . . . . . . . . . . . Hacking Detections 14 | . . . . 1 4 1 . . 2 2 4 Full Trace Events 6 | . . . . 1 2 . . . . . 3 Feedback Events . | . . . . . . . . . . . . Feedback Blocked . | . . . . . . . . . . . . Robot Schematics Acquired . | . . . . . . . . . . . . Robots Built . | . . . . . . . . . . . . Authchips . | . . . . . . . . . . . . Time . | . . . . . . . . . . . . Total Robot Build Rating . | . . . . . . . . . . . . Part Schematics Acquired 8 | . . . . 3 3 . . . 2 . . Parts Built . | . . . . . . . . . . . . Authchips . | . . . . . . . . . . . . Time . | . . . . . . . . . . . . Total Part Build Rating . | . . . . . . . . . . . . Parts Repaired . | . . . . . . . . . . . . Time . | . . . . . . . . . . . . Parts Recycled . | . . . . . . . . . . . . Recycled Matter . | . . . . . . . . . . . . Retrieved Matter . | . . . . . . . . . . . . Retrieved Components . | . . . . . . . . . . . . Parts Scanalyzed . | . . . . . . . . . . . . Part Schematics Acquired . | . . . . . . . . . . . . Parts Damaged . | . . . . . . . . . . . . Bothacking | -11 -10 -9 -8 -8 -8 -6 -6 -6 -5 -4 -4 ------------ Run | Yrd Mat Mat Mat Sto Rec Fac Low Low Fac Fac Ext Used RIF Installer . | . . . . . . . . . . . . Robots Hacked 1 | . . . . . . . . . . . 1 Non-combat . | . . . . . . . . . . . . Combat 1 | . . . . . . . . . . . 1 Robot Hacks Applied . | . . . . . . . . . . . . Relay Couplers Released . | . . . . . . . . . . . . Fabnet Peak Effective % 3 | . . . . . . . . . . 3 3 Autooverrided 1 | . . . . . . . . . . . 1 Robots Rewired 7 | . . . . . . 1 . . . . 6 Allies Hacked . | . . . . . . . . . . . . Hacks Repelled . | . . . . . . . . . . . . Allies | -11 -10 -9 -8 -8 -8 -6 -6 -6 -5 -4 -4 -------- Run | Yrd Mat Mat Mat Sto Rec Fac Low Low Fac Fac Ext Total Allies 13 | . . . . 1 . 1 . . . . 11 Largest Group 6 | . . . . 1 1 1 1 . . . 6 Highest-Rated Group 226 | . . . . 100 100 85 85 . . . 226 Highest-Rated Ally 159 | . . . . 100 100 85 85 . . . 159 Total Orders . | . . . . . . . . . . . . Ally Attacks 74 | . . . . 14 1 . 1 . . . 58 Total Damage 2644 | . . . . 439 22 . 84 . . . 2099 Kills 23 | . . . . 8 1 . . . . . 14 Allies Corrupted 2 | . . . . . . . . . . . 2 Allies Melted 1 | . . . . . . . . . . . 1 Intel | -11 -10 -9 -8 -8 -8 -6 -6 -6 -5 -4 -4 ------- Run | Yrd Mat Mat Mat Sto Rec Fac Low Low Fac Fac Ext Robot Analysis Total . | . . . . . . . . . . . . Derelict Logs Recovered 2 | . . . . . . . 2 . . . . Drone Launches . | . . . . . . . . . . . . Drone Recoveries . | . . . . . . . . . . . . Exploration | -11 -10 -9 -8 -8 -8 -6 -6 -6 -5 -4 -4 ------------- Run | Yrd Mat Mat Mat Sto Rec Fac Low Low Fac Fac Ext Turns Passed 6267 | 71 365 441 119 199 515 595 513 389 1192 1099 769 Spaces Moved 3340 | 42 154 233 74 116 333 307 297 232 614 614 324 Core 38 | 12 . . . . . . . . . . 26 Treads 2344 | 30 154 233 74 116 333 307 297 232 489 2 77 Legs 686 | . . . . . . . . . 1 482 203 Wheels 112 | . . . . . . . . . . 94 18 Hover 160 | . . . . . . . . . 124 36 . Flight . | . . . . . . . . . . . . Fastest Speed 48 | 50 160 145 145 145 145 145 155 158 48 52 50 Average Speed 142 | 144 160 151 145 145 145 153 156 158 146 120 122 Slowest Speed 270 | 160 160 160 145 145 145 162 158 158 270 260 160 Overloaded Moves . | . . . . . . . . . . . . Propulsion Burnouts . | . . . . . . . . . . . . Robots Hopped . | . . . . . . . . . . . . Cave-ins Triggered 1 | . . . . . . . . . . . 1 Exploration Rate (%) 24 | 3 27 25 9 30 61 8 38 22 19 17 34 Regions Visited 11 Branch Regions 5 Pre-discovered Areas 1 | . . . . . 1 . . . . . . Known Exits Taken 1 | . . . . . . . . . . 1 . Unknown Exits Taken 10 | 1 1 1 1 1 1 1 1 1 1 . . Scrap Searched 1 | . . . . . . . . 1 . . . Spaces Dug 23 | . . . . . . . 12 . 2 6 3 Terrain Destroyed 282 | . . . . 11 13 3 78 . 66 89 22 Melee 10 | . . . . . . . . . 2 5 3 Projectile 47 | . . . . . . 3 . . 11 23 10 AOE 225 | . . . . 11 13 . 78 . 53 61 9 Terrain Rammed . | . . . . . . . . . . . . Walls Destroyed . | . . . . . . . . . . . . Machines Disabled . | . . . . . . . . . . . . Actions | -11 -10 -9 -8 -8 -8 -6 -6 -6 -5 -4 -4 --------- Run | Yrd Mat Mat Mat Sto Rec Fac Low Low Fac Fac Ext Total 4286 | 49 207 288 82 136 347 393 326 243 789 823 603 Wait 198 | . 10 . . 2 . 25 19 . 25 19 98 Move 3329 | 41 153 232 73 115 332 306 296 231 613 613 324 Hop . | . . . . . . . . . . . . Pick Up 78 | 1 1 13 2 . 2 7 . 3 18 25 6 Fast Attach 76 | 6 5 3 1 3 . 3 . 2 21 18 14 Attach 56 | . . 1 1 1 1 9 2 . 11 15 15 Detach 17 | . 2 2 . 2 . 2 . 1 2 4 2 Swap 59 | 1 . 7 1 1 2 8 1 1 17 14 6 Drop 81 | . . 12 2 5 1 7 . . 18 26 10 Fire 258 | . 36 18 2 6 9 17 8 5 40 79 38 Melee 39 | . . . . . . . . . 17 10 12 Ram . | . . . . . . . . . . . . Kick 2 | . . . . . . . . . . . 2 Crush 8 | . . . . 1 . . . . 7 . . Escape Stasis . | . . . . . . . . . . . . Rewire 85 | . . . . . . 9 . . . . 76 Trap . | . . . . . . . . . . . . Miscellaneous . | . . . . . . . . . . . . Route ------- -11/Scrapyard -10/Materials -9/Materials -8/Materials -8/Storage -8/Recycling -6/Factory -6/Lower Caves -6/Lower Caves -5/Factory (discovered 2 exits: *Fac / Upp) -4/Factory (discovered 2 exits: *Upp / *Ext) -4/Extension (discovered 1 exit: Cet) History --------- Turn | Location | Event 2 | -11/Scrapyard | Met Revision 17 14 | -11/Scrapyard | Discovered new exit (range 14) 72 | -11/Scrapyard | Entered Materials 313 | -10/Materials | Build established: Mutant 430 | -10/Materials | Discovered new exit (range 4) 437 | -10/Materials | Entered another Materials area 437 | -9/Materials | Evolved 2 slots: Utility x2 800 | -9/Materials | Discovered new exit (range 12) 872 | -9/Materials | Build established: Skirmisher 878 | -9/Materials | Entered another Materials area 878 | -8/Materials | Evolved 2 slots: Utility x2 929 | -8/Materials | Discovered new exit (range 17) 997 | -8/Materials | Entered Storage 1025 | -8/Storage | Met 01-MTF 1146 | -8/Storage | Garrison activated, responded to threat 1154 | -8/Storage | Discovered new exit (range 15) 1190 | -8/Storage | Used back door to open Recycling access 1196 | -8/Storage | Entered Recycling 1196 | -8/Recycling | Accompanied by 1 ally (01-MTF) 1201 | -8/Recycling | 01-MTF left 1203 | -8/Recycling | Found Scrap Engine 1261 | -8/Recycling | Build established: Scavenger-Skirmisher 1517 | -8/Recycling | Discovered new exit (range 5) 1711 | -8/Recycling | Entered Factory 1711 | -6/Factory | Evolved 4 slots: Propulsion x2, Utility x1, Weapon x1 1774 | -6/Factory | Build established: Skirmisher 2154 | -6/Factory | Spotted B-75 Beast 2187 | -6/Factory | Discovered new exit (range 17) 2246 | -6/Factory | Rewired B-75 Beast 2254 | -6/Factory | Lost 5 parts (1p1u3w) 2306 | -6/Factory | Entered Lower Caves 2306 | -6/Lower Caves | Accompanied by 1 ally 2458 | -6/Lower Caves | Learned Factory non-interactive machine intel 2513 | -6/Lower Caves | Build established: Scavenger-Skirmisher 2788 | -6/Lower Caves | Lost 3 parts (1n2u) 2806 | -6/Lower Caves | Discovered new exit (range 8) 2819 | -6/Lower Caves | Entered another Lower Caves area 3053 | -6/Lower Caves | Build established: Tank 3185 | -6/Lower Caves | Discovered new exit (range 7) 3208 | -6/Lower Caves | Entered Factory 3208 | -5/Factory | Evolved 2 slots: Utility x2 3209 | -5/Factory | Identified exit to Upper Caves 3210 | -5/Factory | Loaded intel: 219 non-interactive machine locations 3803 | -5/Factory | Spotted B-75 Beast 4001 | -5/Factory | Lost 6 parts (2n3u1w) 4105 | -5/Factory | Lost 5 parts (1n1u3w) 4271 | -5/Factory | System corruption reached 10% 4375 | -5/Factory | Discovered new exit (range 21) 4400 | -5/Factory | Entered another Factory area 4400 | -4/Factory | Evolved 2 slots: Utility x2 4622 | -4/Factory | Lost 4 parts (2n2u) 4646 | -4/Factory | Discovered new exit (range 14) 4733 | -4/Factory | Build established: Scavenger-Assassin 4794 | -4/Factory | Destroyed 7 combat bots 4826 | -4/Factory | Identified exit to Upper Caves 5082 | -4/Factory | Build established: Scavenger-Gunner 5169 | -4/Factory | Lost 4 parts (1n2u1w) 5262 | -4/Factory | Lost 8 parts (1p3n2u2w) 5472 | -4/Factory | Discovered new exit (range 19) 5498 | -4/Factory | Identified exit to Extension 5499 | -4/Factory | Entered Extension 5516 | -4/Extension | Disrupted transfer network 5740 | -4/Extension | Rescued a captive Derelict 5744 | -4/Extension | Build established: Scavenger-Skirmisher 5749 | -4/Extension | First assault squad dispatched 5772 | -4/Extension | Identified exit to Cetus 5927 | -4/Extension | Lost 6 allies 5929 | -4/Extension | Core integrity fell below 50% 5935 | -4/Extension | System corruption reached 10% 5950 | -4/Extension | Crushed by falling debris 5958 | -4/Extension | Rescued a captive Derelict 5958 | -4/Extension | Rescued a captive Derelict 5966 | -4/Extension | Core integrity fell below 20% 5981 | -4/Extension | Lost 22 parts (2p5n11u4w) 6003 | -4/Extension | Rescued A7 6268 | -4/Extension | Destroyed by Y-64 Sentinel with KE Penetrator Last Messages --------------- 06197_ Acquired Unknown Energy Gun. 06197_ Identified Wave Gun. 06198_ Acquired 10 matter. 06200_ WDE#>#CB|3PNMNL#K KJGWTOTT5TSJU&Y=>1K 06205_ Acquired Lgt. Antimatter Reactor. 06221_ System corrupted: Imp. Treads rejected. 06221_ Acquired Imp. Treads. 06233_ R-10 Processor collects Corrupted Lgt. Antimatter Reactor. 06236_ Acquired 30 matter. 06237_ System corrupted: Matter fused (-9). 06237_ Acquired 9 matter. 06249_ Acquired Adv. Heat Sink. 06252_ System corrupted: Component data lost. 06258_ Myomer Leg destroyed. 06259_ System corrupted: Wave Gun failed to cycle. 06263_ G-67 Veteran system terminally corrupted. 06263_ Field Laser fried. 06265_ Penetrated by Slug. 06267_ System corrupted: Tesla Rifle failed to cycle. 06268_ Penetrated by Slug. Map ----- +----------------------------------------------------+ | | | | | | | | | | | ##?######?###?#????????????##????????#???????????? | | ?#######?##?#?#??????#?##????????????????????????? | | #?"""#####?#?##???####????????##?????????????????? | | ##"Y"#?#######?#?##????#?????#??????#???#????????? | | ##" "########?##?##?######???#?????????#?????????? | | =! #####?##?####?#?#?##??#???????????????? | | [*% ######??#??#?##??##???##??#?#?????????? | | =% ####???##??#??###?##??#?????????#?????? | | % " ##?##?#?##########??#?#??????#????????? | | ^%= "%" "####?#?#############?#?##?#?##???????? | | ^%%" "" T##?##?### # ######?#?###?????#?????? | | =% % "%" ##?###? " ###??#??#??? ??????? | | # "" ####?##? " # ##?#???##??????????? | | % ######?###T# ###??##???? ???????? | | # ####?####### ###?#?####??? ? ??? | | " ######## ##?##?### # * ##???#?### ????????? | | T ###### ######## %# =[% ###??#?#?#? ???????? | | # ##?### ###########= ![ #####?##?# ? ??????? | | # ###### % !% [ *%[[ ##?####??# ??????? | | ######### ############Y#### ####?##?## ?? ? ???? | | ################### *#[%@### ##?#???##??????????? | | #?####?########?#### "##=#### #####????# ???????? | | #?####?##?#??##?#######!=#### ##?#?#?#???#?#?????? | | #?#?###?##?#?#????########### ##?#??####?? ??????? | | ?########??#?##???#?######### ###?#####??????????? | | ??####?####???#??####?#?#?### ####?#??#? ??????#? | | ?????##########?#??####?#??## ###??#?##??#??#????? | | ?#?##?####??#?#?#######?#??## ##?###???????#?#???? | | #??#???#???##?#?#######??#### ######??#? ??#?????? | | #??????#?######?##??######### ###???##???#???????? | | #???????????##??#?##??#???### ###?##???# ????????? | | ????????#????#??####?#?###?## ### #? ??#?????????? | | ??????##????###???##?######"" ""? ?? ?"? ????????? | | ???????##??#?#???####??#??#?? ? ???? ???????????? | | ?????????#???#??#?#?##????? ??? ?? ? ????#?????? | | ??????????????#???#????#??? ????? ??????????? | | ?????????####??????#????#?#?? ? ? ????????????? | | ?????????? ????? ?? ??? ???? ??????????????? | | ???????????? ? ?? ? ???????? ? ?????????????? | | ?????????????? ???? ??? ?? ??? ????????????????? | | ??????????????? ???? ?? ???? ????????????????????? | | ????????????????? ???? ?? ?? ????????????????????? | | ?????????????????????????????????????????????????? | | ?????????????????????????????????????????????????? | | ?????????????????????????????????????????????????? | +----------------------------------------------------+ Best States ------------- Heat Dissipation 100 Energy Generation 24 Energy Capacity 325 Matter Stores 600 Matter Capacity 600 Sight Range 22 Terrain Scan Range 20 Terrain Scan Density 135 ECM Strength 1 Jamming Range 14 Power Amplification 20 Armor Coverage 450 Weapon Cycling 20 Phase Shifting 10 Evasion (%) 65 Targeting Accuracy 6 Target Analysis 8 Core Analysis 6 Recoil Reduction 4 Kinecelleration 40 Offensive Hacking 20 Defensive Hacking 14 Item Schematics ----------------- Imp. Light Armor Plating | -8/Storage | Hacked Cesium-ion Thruster | -8/Storage | Hacked Arc Projector | -8/Storage | Hacked Hvy. Ion Cannon | -8/Recycling | Hacked Concussive RPG | -8/Recycling | Hacked Hacking Suite | -8/Recycling | Hacked Cmb. Antigrav System | -5/Factory | Hacked Adv. Weapon Cycler | -5/Factory | Hacked Robot Schematics ------------------ None Fabricated ------------ Nothing Alien Tech Used ----------------- None Achievements -------------- None Challenges ------------ None Game ------ Seed CouplerTachyonAmplifier Manual? 0 Play Time 00:48:52 Cumulative 83.1 hours Start 2024.07.22 @ 01:21:09 End 2024.07.22 @ 02:05:28 Sessions 1 Manual Loads 0 Difficulty Rogue Special Mode None Game No. 93 Rogue 93 Adventurer 0 Explorer 0 Win Type - Total 0 Types 0/0/0/0/0/0/0/0/0 Lore% 52 Gallery% 59 Achievement% 42 Wizard Run 0 Options --------- Layout 0 ASCII 0 Keyboard 1 Movement Numpad Keybinds 0 Fullscreen 2 Font 18/SmallcapsGlow Map View 76x50 Zoom Use 0% Tactical HUD 1 Map Filters NONE Filters NONE Steam 1 RUN: eab7dbeb-45c3-45df-8407-421a4a484edc